bitfinex-derivatives/quotes_SOLF0:USTF0_20250829
["timestamp","ask_amount","ask_price","bid_price","bid_amount"]
[1756440002373,0.03334049,216.85,216.8,7.44]
[1756440002569,0.03334049,216.85,216.79,2.5687045]
[1756440002975,7.56,216.95,216.83,7.44]
[1756440003176,7.56,217.0,216.87,7.44]
[1756440003364,7.56,217.0,216.86,2.5687045]
[1756440003365,7.56,217.0,216.9,7.44]
[1756440003871,2.5687045,216.95,216.86,7.44]
[1756440004073,7.56,216.94,216.86,7.44]
[1756440004474,10.1287045,216.94,216.86,7.44]
[1756440004773,0.02944497,216.92,216.86,7.44]
[1756440006278,2.59814947,216.92,216.86,7.44]
[1756440006578,0.02944497,216.92,216.86,7.44]
[1756440012377,10.2487045,216.91,216.81,7.08]
[1756440012576,0.02944497,216.92,216.81,7.08]
[1756440013170,7.70944497,216.92,216.81,7.08]
[1756440013670,2.5687045,216.9,216.81,7.08]
[1756440014075,2.5687045,216.87,216.81,7.08]
[1756440014281,2.5687045,216.87,216.76,7.08]
[1756440014671,7.68,216.86,216.76,7.08]
[1756440014976,2.5687045,216.88,216.76,12.13081675]
[1756440015171,0.03012986,216.83,216.78,2.5687045]
[1756440015480,0.03012986,216.83,216.79,7.08]
[1756440015883,0.03012986,216.83,216.76,7.08]
[1756440018383,2.5687045,216.82,216.76,7.08]
[1756440018886,2.5687045,216.82,216.7,7.61952125]
[1756440018887,2.5687045,216.82,216.71,7.08]
[1756440019074,0.03012986,216.83,216.74,7.08]
[1756440019278,2.5687045,216.85,216.74,7.08]
[1756440019680,0.02987552,216.81,216.74,7.08]
[1756440024383,0.02987552,216.81,216.74,9.6487045]
[1756440024587,0.02987552,216.81,216.75,7.08]
[1756440025879,0.02987552,216.81,216.77,2.5687045]
[1756440026688,0.02987552,216.81,216.78,7.08]
[1756440027190,0.02987552,216.81,216.77,2.5687045]
[1756440027591,0.02987552,216.81,216.78,7.08]
[1756440028294,0.02987552,216.81,216.76,0.03157825]
[1756440028295,0.02987552,216.81,216.8,9.6487045]
[1756440028989,10.2487045,216.91,216.8,7.54]
[1756440029182,2.38488053,216.9,216.8,7.08]
[1756440029381,10.2487045,216.91,216.8,7.08]
[1756440030179,10.2487045,216.91,216.83,0.02925292]
[1756440032292,2.38585418,216.9,216.83,0.02925292]
[1756440032591,10.2487045,216.91,216.83,0.02925292]
[1756440032788,2.38584257,216.9,216.83,0.02925292]
[1756440032988,10.2487045,216.91,216.83,0.02925292]
[1756440033193,2.38584257,216.9,216.83,0.02925292]
[1756440033393,10.2487045,216.91,216.83,0.02925292]
[1756440033594,2.38591848,216.9,216.83,0.02925292]
[1756440033787,10.2487045,216.91,216.83,0.02925292]
[1756440035895,7.68,216.91,216.84,7.08]
[1756440036801,2.5687045,216.95,216.84,2.5687045]
[1756440037095,2.5687045,216.95,216.85,7.4]
[1756440039388,2.5687045,216.95,216.88,0.03533883]
[1756440040390,2.5687045,216.95,216.88,7.43533883]
[1756440040597,7.61,216.96,216.88,7.43533883]
[1756440042999,10.1787045,216.96,216.88,7.43533883]
[1756440050715,2.5687045,216.99,216.88,7.43533883]
[1756440050920,2.5687045,216.99,216.89,7.4]
[1756440051415,2.5687045,216.99,216.92,7.43156599]
[1756440051616,7.61,217.0,216.92,7.43156599]
[1756440052516,309.64,217.04,216.92,7.43156599]
[1756440052517,317.25,217.04,216.92,7.43156599]
[1756440052714,317.25,217.04,216.95,7.4]
[1756440052909,7.61,217.04,216.95,7.4]
[1756440053619,2.5687045,217.03,216.97,0.02979537]
[1756440055119,7.61,217.02,216.97,0.02979537]
[1756440055316,2.5687045,217.03,216.97,0.02979537]
[1756440055817,7.61,217.02,216.97,0.02979537]
[1756440056114,2.5687045,217.03,216.97,0.02979537]
[1756440056517,7.61,217.02,216.97,0.02979537]
[1756440056817,2.5687045,217.03,216.97,0.02979537]
[1756440057122,7.61,217.03,216.97,0.02979537]
[1756440060224,7.61,217.0,216.97,0.02979537]
[1756440061321,2.5687045,217.01,216.97,0.02979537]
[1756440061626,7.61,217.0,216.97,0.02979537]
[1756440061826,2.5687045,217.01,216.97,0.02979537]
[1756440062124,62.59188748,217.16,217.0,2.5687045]
[1756440062324,2.5687045,217.14,217.01,7.4]
[1756440062528,7.61,217.13,217.01,7.4]
[1756440062918,7.61,217.13,217.05,0.03544118]
[1756440064625,7.61,217.1,217.05,0.03544118]
[1756440064830,2.5687045,217.11,217.05,0.03544118]
[1756440065829,7.61,217.1,217.05,0.03544118]
[1756440066027,2.5687045,217.11,217.05,0.03544118]
[1756440066429,7.66,217.1,217.05,0.03544118]
[1756440066829,2.5687045,217.11,217.05,0.03544118]
[1756440067333,7.66,217.1,217.05,0.03544118]
[1756440067722,10.2287045,217.11,217.05,0.03544118]
[1756440067929,7.66,217.11,217.05,0.03544118]
[1756440068128,7.66,217.11,217.05,7.02544118]
[1756440070936,7.66,217.16,217.09,2.5687045]
[1756440071134,2.5687045,217.21,217.1,6.99]
[1756440071330,7.66,217.27,217.1,6.99]
[1756440071532,7.66,217.27,217.03,51.5887045]
[1756440071533,7.66,217.34,217.22,6.99]
[1756440072236,7.66,217.34,217.26,0.03030468]
[1756440073034,7.66,217.34,217.26,7.02030468]
[1756440076544,10.2287045,217.38,217.28,2.5687045]
[1756440077246,7.66,217.38,217.31,0.03258806]
[1756440077448,7.66,217.46,217.31,0.03258806]
[1756440077645,7.66,217.43,217.32,2.5687045]
[1756440078146,7.66,217.43,217.35,0.03402141]
[1756440080848,2.5687045,217.38,217.35,0.03402141]
[1756440081048,7.66,217.37,217.35,0.03402141]
[1756440082144,2.5687045,217.38,217.35,0.03402141]
[1756440082348,7.66,217.37,217.35,0.03402141]
[1756440082544,2.5687045,217.38,217.35,0.03402141]
[1756440082746,8.12,217.37,217.22,6.99]
[1756440082944,7.66,217.32,217.22,6.99]
[1756440083145,2.5687045,217.23,217.14,6.99]
[1756440083344,7.66,217.22,217.03,2.5687045]
[1756440083539,7.66,217.19,217.08,6.99]
[1756440084049,0.03105613,217.16,217.08,6.99]
[1756440085144,2.59976063,217.16,217.08,6.99]
[1756440085947,2.59976063,217.16,217.04,2.5687045]
[1756440085948,7.66,217.15,217.04,2.5687045]
[1756440086250,7.66,217.15,217.04,9.5587045]
[1756440086654,0.03105613,217.16,217.08,6.99]
[1756440086854,0.03105613,217.16,217.1,2.5687045]
[1756440087154,2.5687045,217.22,217.11,6.99]
[1756440087351,0.03515191,217.15,217.08,4.04180303]
[1756440087556,0.03515191,217.15,217.09,6.99]
[1756440087755,0.03515191,217.15,217.09,74.81]
[1756440087946,0.03515191,217.15,217.13,6.99]
[1756440088154,5.191e-05,217.15,217.14,6.99]
[1756440088352,11.70180303,217.28,217.14,7.45]
[1756440088557,11.70180303,217.28,217.14,6.99]
[1756440089057,7.66,217.28,217.14,6.99]
[1756440089553,11.70180303,217.32,217.19,0.03221924]
[1756440090152,7.66,217.32,217.2,6.99]
[1756440090951,7.66,217.32,217.24,0.03254961]
[1756440095864,4.04180303,217.36,217.24,0.03254961]
[1756440096170,7.66,217.36,217.25,6.99]
[1756440096361,7.66,217.36,217.26,7.53]
[1756440097259,7.35,217.33,217.29,0.03136955]
[1756440097664,7.35,217.33,217.21,7.53]
[1756440097864,7.35,217.33,217.29,0.03057407]
[1756440098069,7.35,217.34,217.29,0.03057407]
[1756440098270,49.62,217.35,217.29,0.03057407]
[1756440098472,7.35,217.34,217.29,0.03057407]
[1756440098671,49.62,217.35,217.29,0.03057407]
[1756440099169,7.35,217.35,217.29,0.03057407]
[1756440102365,4.04180303,217.33,217.29,0.03057407]
[1756440102772,7.35,217.32,217.29,0.03057407]
[1756440103070,4.04180303,217.33,217.29,0.03057407]
[1756440103568,7.35,217.32,217.29,0.03057407]
[1756440104164,4.04180303,217.33,217.29,0.03057407]
[1756440104569,7.35,217.32,217.29,0.03057407]
[1756440105865,4.04180303,217.38,217.29,0.03057407]
[1756440106070,107.12,217.4,217.19,7.53]
[1756440106071,7.35,217.33,217.19,7.53]
[1756440107282,7.35,217.29,217.16,4.04180303]
[1756440107480,7.35,217.29,217.15,316.77]
[1756440107481,7.35,217.27,217.15,316.77]
[1756440108174,0.03197394,217.23,217.15,316.77]
[1756440110179,7.38197394,217.23,217.08,4.04180303]
[1756440110380,7.38197394,217.23,217.09,124.27]
[1756440110672,7.35,217.23,217.09,7.53]
[1756440110880,0.03065352,217.18,217.09,124.27]
[1756440111676,0.03065352,217.18,217.1,7.53]
[1756440112481,0.03065352,217.18,217.12,4.04180303]
[1756440113484,0.03065352,217.18,217.13,7.53]
[1756440113878,5.352e-05,217.18,217.17,7.53]
[1756440114679,5.352e-05,217.18,217.17,7.99]
[1756440117293,5.352e-05,217.18,217.17,7.53]
[1756440118084,5.352e-05,217.18,217.13,0.03337867]
[1756440118085,7.35,217.17,217.13,0.03337867]
[1756440118983,5.352e-05,217.18,217.13,7.56337867]
[1756440119180,5.352e-05,217.18,217.13,0.03337867]
[1756440119379,7.35005352,217.18,217.13,0.03337867]
[1756440119584,5.352e-05,217.18,217.13,0.03337867]
[1756440123485,5.352e-05,217.18,217.16,7.53]
[1756440125184,5.352e-05,217.18,217.13,0.03337867]
[1756440131188,5.352e-05,217.18,217.14,7.22]
[1756440131789,5.352e-05,217.18,217.13,5.08419542]
[1756440131790,5.352e-05,217.18,217.17,7.22]
[1756440132386,7.42,217.28,217.17,129.73081675]
[1756440132586,7.42,217.35,217.2,11.26180303]
[1756440132786,7.42,217.35,217.2,16.31261978]
[1756440133089,7.42,217.35,217.25,7.22]
[1756440133686,7.42,217.35,217.28,0.02995893]
[1756440134187,7.42,217.42,217.29,7.22]
[1756440134392,2.38017608,217.41,217.29,7.22]
[1756440134692,7.42,217.42,217.29,7.22]
[1756440134890,2.37975667,217.41,217.33,0.02942261]
[1756440135094,7.42,217.42,217.33,0.02942261]
[1756440135282,7.42,217.4,217.33,0.02942261]
[1756440138794,7.42,217.38,217.33,0.02942261]
[1756440138987,2.37746063,217.37,217.33,0.02942261]
[1756440139187,4.04180303,217.35,217.19,43.14]
[1756440139386,4.04180303,217.35,217.19,7.22]
[1756440139591,2.37771535,217.34,217.19,7.22]
[1756440139790,7.42,217.33,217.19,7.22]
[1756440140687,4.04180303,217.35,217.19,7.22]
[1756440140887,9.79800653,217.34,217.19,7.22]
[1756440141095,7.42,217.3,217.19,7.22]
[1756440141992,7.42,217.3,217.18,309.28]
[1756440142194,7.42,217.3,217.14,128.30180303]
[1756440142392,7.42,217.3,217.14,133.35261978]
[1756440142583,4.04180303,217.31,217.14,128.30180303]
[1756440142783,7.42,217.29,217.14,128.30180303]
[1756440143388,7.42,217.29,217.14,7.22]
[1756440143593,7.42,217.29,217.14,11.26180303]
[1756440143794,7.42,217.29,217.14,59.94]
[1756440144090,7.42,217.29,217.14,64.99081675]
[1756440144692,7.42,217.29,217.14,59.94]
[1756440145192,7.42,217.29,217.14,64.99081675]
[1756440145392,7.42,217.29,217.14,59.94]
[1756440145793,7.42,217.29,217.14,110.14]
[1756440146390,126.19,217.38,217.1,12.27081675]
[1756440146391,7.42,217.26,217.1,12.27081675]
[1756440146588,2.37984859,217.25,217.1,7.22]
[1756440146891,11.46180303,217.23,217.1,7.22]
[1756440149493,4.04180303,217.19,217.1,7.22]
[1756440151490,7.42,217.21,217.1,7.22]
[1756440152791,7.42,217.25,217.11,7.22]
[1756440152988,7.42,217.21,217.07,5.05081675]
[1756440153189,7.42,217.13,217.02,5.05081675]
[1756440153391,4.04180303,217.1,217.01,7.22]
[1756440153590,7.42,217.09,216.96,7.22]
[1756440153793,4.04180303,217.06,216.96,7.22]
[1756440155394,7.42,217.05,216.96,7.22]
[1756440157300,7.42,217.05,216.92,309.28]
[1756440169102,7.22,217.01,216.92,309.28]
[1756440169306,7.22,217.01,216.91,124.37]
[1756440170609,4.04180303,217.02,216.78,314.153]
[1756440170911,7.22,216.97,216.81,7.19]
[1756440177017,35.28,216.99,216.81,7.19]
[1756440177018,7.22,216.93,216.81,7.19]
[1756440181521,4.04180303,216.88,216.81,7.19]
[1756440181721,7.22,216.87,216.76,7.19]
[1756440182416,0.03027004,216.84,216.76,7.19]
[1756440185320,2.60404442,216.84,216.76,7.19]
[1756440185625,0.03027004,216.84,216.76,7.19]
[1756440189721,0.03027004,216.84,216.78,7.28]
[1756440191229,0.03027004,216.84,216.79,2.57377438]
[1756440191432,0.03027004,216.84,216.8,7.28]
[1756440191824,0.03027004,216.84,216.79,2.57377438]
[1756440192025,0.03027004,216.84,216.8,7.28]
[1756440192421,0.03027004,216.84,216.79,2.57377438]
[1756440192627,0.03027004,216.84,216.8,7.28]
[1756440193228,0.03027004,216.84,216.79,2.57377438]
[1756440193729,0.03027004,216.84,216.8,7.28]
[1756440194325,0.03027004,216.84,216.79,2.57377438]
[1756440194829,0.03027004,216.84,216.8,7.28]
[1756440195327,0.03027004,216.84,216.79,2.57377438]
[1756440196019,0.03027004,216.84,216.8,7.28]
[1756440196531,0.03027004,216.84,216.79,2.57377438]
[1756440197021,0.03027004,216.84,216.8,7.28]
[1756440197224,0.03027004,216.84,216.79,2.57377438]
[1756440198231,0.03027004,216.84,216.8,7.28]
[1756440198929,0.03027004,216.84,216.79,2.57377438]
[1756440200230,0.03027004,216.84,216.8,7.28]
[1756440200432,0.03027004,216.84,216.79,2.57377438]
[1756440201828,7.47027004,216.84,216.8,7.28]
[1756440202136,7.47027004,216.84,216.76,7.28]
[1756440207230,10.04404442,216.84,216.72,7.28]
[1756440208836,10.04404442,216.84,216.74,7.28]
[1756440214939,10.04404442,216.84,216.72,5.05081675]
[1756440215135,7.44,216.82,216.71,5.05081675]
[1756440215340,7.44,216.82,216.72,5.05081675]
[1756440216038,0.03142068,216.79,216.72,5.05081675]
[1756440216244,0.03142068,216.79,216.71,5.05081675]
[1756440220344,7.51,216.78,216.71,5.05081675]
[1756440222349,7.51,216.78,216.7,12.33081675]
[1756440225360,10.08377438,216.78,216.69,5.05081675]
[1756440225661,7.51,216.78,216.69,5.05081675]
[1756440225953,7.51,216.78,216.68,12.32081675]
[1756440226858,7.51,216.78,216.69,5.05081675]
[1756440227762,0.03142068,216.79,216.73,7.27]
[1756440227959,0.03142068,216.79,216.73,12.32081675]
[1756440228362,7.54142068,216.79,216.73,7.27]
[1756440231157,7.54142068,216.79,216.71,5.05081675]
[1756440231361,7.54142068,216.79,216.69,5.05081675]
[1756440231561,7.54142068,216.79,216.67,7.62277524]
[1756440231562,7.51,216.76,216.67,5.05081675]
[1756440232965,7.65974775,216.92,216.67,5.05081675]
[1756440232966,2.57377438,216.81,216.69,5.05081675]
[1756440233160,7.51,216.8,216.7,7.27]
[1756440233461,7.51,216.8,216.7,9.84377438]
[1756440235763,7.51,216.8,216.7,7.27]
[1756440236066,7.51,216.77,216.7,7.27]
[1756440236963,7.51,216.77,216.68,5.05081675]
[1756440237162,7.51,216.84,216.75,7.27]
[1756440238965,7.51,216.88,216.76,7.27]
[1756440239165,7.51,216.88,216.77,14.89459113]
[1756440239359,7.51,216.88,216.78,7.27]
[1756440240756,7.51,216.98,216.81,7.27]
[1756440240959,10.08377438,216.93,216.83,2.57377438]
[1756440241159,2.57377438,216.96,216.84,7.27]
[1756440241368,7.51,216.97,216.87,7.27]
[1756440241865,4.95960741,216.96,216.87,7.27]
[1756440242066,7.51,216.94,216.87,7.27]
[1756440242267,7.51,216.94,216.82,5.05081675]
[1756440242268,2.57377438,216.93,216.82,12.32081675]
[1756440242468,2.60307277,216.93,216.82,12.32081675]
[1756440242969,7.51,216.92,216.82,12.32081675]
[1756440243163,7.51,216.92,216.82,7.27]
[1756440243361,2.57377438,216.91,216.82,7.27]
[1756440244163,0.02929839,216.93,216.83,7.62459113]
[1756440244369,0.02929839,216.93,216.84,12.32081675]
[1756440244570,2.57377438,216.94,216.85,7.27]
[1756440244962,7.51,216.96,216.85,5.05081675]
[1756440245167,7.51,216.96,216.86,7.27]
[1756440247477,2.57377438,216.95,216.86,7.27]
[1756440247877,2.57377438,216.95,216.81,7.62277524]
[1756440247878,2.57377438,216.92,216.8,10.15377438]
[1756440248076,7.55,216.91,216.8,10.15377438]
[1756440248581,7.55,216.91,216.81,7.58]
[1756440252285,7.55,216.88,216.77,5.05081675]
[1756440252478,2.57377438,216.83,216.73,5.05081675]
[1756440252676,2.57377438,216.83,216.72,7.58]
[1756440254978,7.55,216.85,216.74,7.58]
[1756440255178,7.55,216.85,216.76,2.57377438]
[1756440258388,7.55,216.85,216.75,7.58]
[1756440258582,2.57377438,216.84,216.75,7.58]
[1756440261287,7.55,216.83,216.75,7.58]
[1756440261590,7.55,216.83,216.7,12.63081675]
[1756440261786,10.12377438,216.83,216.71,12.63081675]
[1756440261988,10.12377438,216.83,216.71,7.58]
[1756440262183,2.57377438,216.8,216.71,7.58]
[1756440262382,7.55,216.79,216.71,7.58]
[1756440265285,2.57377438,216.77,216.68,309.9]
[1756440265480,12.4,216.87,216.68,309.9]
[1756440265687,2.57377438,216.8,216.69,7.58]
[1756440266687,7.55,216.79,216.68,2.57377438]
[1756440266888,2.57377438,216.74,216.64,5.05081675]
[1756440267092,2.57377438,216.74,216.65,7.58]
[1756440268697,7.55,216.76,216.65,7.58]
[1756440268698,7.55,216.76,216.65,10.15377438]
[1756440268889,7.55,216.76,216.66,7.58]
[1756440271583,2.57377438,216.74,216.66,7.58]
[1756440272290,7.55,216.76,216.68,2.57377438]
[1756440272589,2.57377438,216.79,216.69,7.58]
[1756440274089,7.55,216.8,216.69,7.58]
[1756440274296,2.57377438,216.79,216.69,7.58]
[1756440274796,7.55,216.78,216.69,7.58]
[1756440279199,2.57377438,216.77,216.69,7.58]
[1756440280895,0.0331475,216.75,216.69,7.58]
[1756440286704,0.0331475,216.75,216.71,7.52]
[1756440286898,0.0331475,216.75,216.7,2.57377438]
[1756440287098,0.0331475,216.75,216.71,7.52]
[1756440287294,0.0331475,216.75,216.7,2.57377438]
[1756440288005,0.0331475,216.75,216.71,7.52]
[1756440288607,310.72286077,216.9,216.74,7.52]
[1756440288608,7.2,216.86,216.74,7.52]
[1756440288911,7.2,216.86,216.77,7.52]
[1756440289606,317.12,216.9,216.77,7.52]
[1756440289901,2.57377438,216.89,216.79,0.03328407]
[1756440290801,7.2,216.88,216.79,0.03328407]
[1756440291007,2.57377438,216.86,216.79,0.03328407]
[1756440291206,7.2,216.85,216.79,0.03328407]
[1756440293398,9.77377438,216.89,216.79,7.55328407]
[1756440293604,2.38503431,216.88,216.79,7.55328407]
[1756440293807,9.77377438,216.89,216.79,7.55328407]
[1756440294704,7.2,216.89,216.79,7.55328407]
[1756440294899,7.2,216.89,216.81,7.52]
[1756440297908,7.2,216.99,216.81,7.52]
[1756440298207,7.2,216.89,216.81,7.52]
[1756440298711,7.2,216.89,216.88,0.03237006]
[1756440298912,7.2,216.89,216.81,7.52]
[1756440299307,7.2,216.89,216.86,0.03420922]
[1756440299506,2.57377438,216.9,216.86,0.03420922]
[1756440299909,7.2,216.89,216.86,0.03420922]
[1756440300412,2.57377438,216.9,216.86,0.03420922]
[1756440301213,7.2,216.89,216.86,0.03420922]
[1756440301706,2.57377438,216.87,216.86,0.03420922]
[1756440301906,7.2,216.86,216.76,7.52]
[1756440302112,2.57377438,216.84,216.76,7.52]
[1756440303208,0.03531341,216.82,216.76,7.52]
[1756440304516,9.77377438,216.81,216.72,12.57081675]
[1756440306305,0.03531341,216.82,216.78,2.57377438]
[1756440306515,0.03531341,216.82,216.78,7.62459113]
[1756440306713,0.03531341,216.82,216.78,2.57377438]
[1756440306913,0.03531341,216.82,216.79,7.48]
[1756440307814,0.03531341,216.82,216.77,7.48]
[1756440308413,0.03531341,216.82,216.79,7.48]
[1756440309314,1.341e-05,216.82,216.81,10.05377438]
[1756440309918,7.7,216.92,216.82,7.48]
[1756440310113,2.57377438,216.94,216.84,2.57377438]
[1756440310320,7.7,216.96,216.85,7.48]
[1756440311120,7.7,216.96,216.88,0.03548856]
[1756440312513,7.7,216.96,216.89,7.48]
[1756440315828,2.57377438,217.01,216.89,10.05377438]
[1756440316319,7.7,217.02,216.89,10.05377438]
[1756440316524,10.27377438,217.02,216.93,0.03548022]
[1756440316825,10.27377438,217.02,216.94,7.48]
[1756440317426,2.57377438,217.05,216.94,7.48]
[1756440317728,7.7,217.07,216.94,7.48]
[1756440317729,7.7,217.07,216.96,7.48]
[1756440318126,7.7,217.07,216.99,0.03057016]
[1756440318623,2.57377438,217.15,217.02,2.57377438]
[1756440318828,7.7,217.14,217.02,2.57377438]
[1756440319227,7.7,217.14,217.03,7.48]
[1756440319428,7.7,217.14,217.06,0.03239265]
[1756440320432,10.27377438,217.18,217.08,2.57377438]
[1756440320728,10.27377438,217.18,217.07,2.57377438]
[1756440321323,10.27377438,217.18,217.1,0.03058845]
[1756440327333,7.7,217.15,217.1,0.03058845]
[1756440327536,7.7,217.2,217.1,0.03058845]
[1756440327737,10.27377438,217.17,217.1,0.03058845]
[1756440330433,46.36,217.21,217.1,0.03058845]
[1756440330434,10.27377438,217.11,217.1,0.03058845]
[1756440336143,7.7,217.11,217.1,0.03058845]
[1756440336544,7.37,217.13,217.1,0.03058845]
[1756440337142,2.57377438,217.14,217.1,0.03058845]
[1756440337538,7.37,217.13,217.1,0.03058845]
[1756440337735,2.57377438,217.14,217.1,0.03058845]
[1756440338339,7.37,217.13,217.1,0.03058845]
[1756440338744,2.57377438,217.16,217.1,0.03058845]
[1756440339938,2.57377438,217.13,217.1,0.03058845]
[1756440340738,7.37,217.2,217.1,0.03058845]
[1756440340938,2.57377438,217.14,217.1,0.03058845]
[1756440341541,7.37,217.13,217.1,0.03058845]
[1756440341940,2.57377438,217.14,217.1,0.03058845]
[1756440342643,9.94377438,217.17,217.1,0.03058845]
[1756440344348,7.37,217.17,217.1,0.03058845]
[1756440345445,7.37,217.17,217.1,7.07058845]
[1756440347743,7.37,217.17,217.1,0.03058845]
[1756440349047,2.57377438,217.15,217.1,0.03058845]
[1756440349446,7.37,217.14,217.06,7.04]
[1756440349751,7.37,217.14,217.1,0.03385088]
[1756440349947,2.57377438,217.15,217.1,0.03385088]
[1756440350146,7.37,217.14,217.1,0.03385088]
[1756440350945,2.57377438,217.15,217.1,0.03385088]
[1756440352249,7.37,217.14,217.1,0.03385088]
[1756440352451,2.57377438,217.15,217.1,0.03385088]
[1756440352650,7.37,217.14,217.1,0.03385088]
[1756440352848,2.57377438,217.15,217.1,0.03385088]
[1756440353147,7.37,217.11,217.1,0.03385088]
[1756440353549,7.37,217.11,217.03,7.04]
[1756440353953,7.37,217.11,217.08,0.03459803]
[1756440354148,2.57377438,217.12,217.08,0.03459803]
[1756440354554,7.37,217.11,217.08,0.03459803]
[1756440355155,2.57377438,217.12,217.08,0.03459803]
[1756440355958,9.94377438,217.09,217.08,0.03459803]
[1756440356250,12.32323962,217.09,216.98,7.04]
[1756440356449,9.94377438,217.09,216.98,7.04]
[1756440357352,0.03362304,217.06,216.98,7.04]
[1756440358759,7.37,217.05,216.96,2.57377438]
[1756440359057,7.37,217.05,216.95,309.72]
[1756440359453,7.37,217.05,216.95,314.77081675]
[1756440359653,7.37,217.05,216.95,309.72]
[1756440360458,9.94377438,216.99,216.91,5.05081675]
[1756440360758,9.94377438,216.99,216.9,7.04]
[1756440360961,2.38639433,216.98,216.9,7.04]
[1756440361256,9.94377438,216.96,216.86,7.04]
[1756440361459,2.3885313,216.95,216.86,7.04]
[1756440361657,2.3885313,216.94,216.86,7.04]
[1756440361848,2.3885313,216.93,216.86,7.04]
[1756440362056,9.94377438,216.96,216.86,7.04]
[1756440362253,2.57377438,216.93,216.86,7.04]
[1756440362556,2.41824989,216.92,216.82,7.04]
[1756440362759,0.03237791,216.92,216.82,7.04]
[1756440364061,0.03237791,216.92,216.84,7.04]
[1756440366856,7.28,216.91,216.84,7.04]
[1756440367458,2.57377438,216.9,216.81,309.46]
[1756440369058,2.57377438,216.84,216.75,7.11]
[1756440369458,2.57377438,216.84,216.77,0.03307684]
[1756440369962,7.31452496,216.82,216.77,7.14307684]
[1756440370264,7.28,216.8,216.77,0.03307684]
[1756440370457,0.03452496,216.82,216.77,0.03307684]
[1756440370660,7.31452496,216.82,216.77,7.14307684]
[1756440372257,7.31452496,216.82,216.77,0.03307684]
[1756440372258,7.28,216.8,216.77,0.03307684]
[1756440373763,2.60829934,216.82,216.77,0.03307684]
[1756440374260,7.28,216.81,216.77,0.03307684]
[1756440374851,7.28,216.78,216.77,0.03307684]
[1756440375862,7.28,216.81,216.77,0.03307684]
[1756440376064,2.60829934,216.82,216.77,0.03307684]
[1756440376362,2.60829934,216.82,216.77,7.14307684]
[1756440376363,7.31452496,216.82,216.77,7.14307684]
[1756440376863,0.03452496,216.82,216.77,0.03307684]
[1756440377054,7.28,216.81,216.77,0.03307684]
[1756440377257,0.03452496,216.82,216.77,7.14307684]
[1756440377457,7.31452496,216.82,216.77,7.14307684]
[1756440378057,2.60829934,216.82,216.77,0.03307684]
[1756440378261,7.28,216.81,216.77,0.03307684]
[1756440378763,2.60829934,216.82,216.77,0.03307684]
[1756440378957,7.28,216.81,216.77,0.03307684]
[1756440379763,2.60829934,216.82,216.77,0.03307684]
[1756440379963,7.28,216.81,216.77,0.03307684]
[1756440380354,2.60829934,216.82,216.77,0.03307684]
[1756440380558,7.28,216.81,216.77,0.03307684]
[1756440381358,2.60829934,216.82,216.77,0.03307684]
[1756440381862,7.28,216.81,216.77,0.03307684]
[1756440382464,2.60829934,216.82,216.77,0.03307684]
[1756440382664,7.28,216.81,216.77,0.03307684]
[1756440382965,0.03452496,216.82,216.77,0.03307684]
[1756440383360,7.28,216.81,216.77,0.03307684]
[1756440383559,0.03452496,216.82,216.77,0.03307684]
[1756440383960,7.28,216.81,216.77,0.03307684]
[1756440384161,0.03452496,216.82,216.77,0.03307684]
[1756440384360,7.28,216.81,216.77,0.03307684]
[1756440384561,0.03452496,216.82,216.77,0.03307684]
[1756440384963,2.57377438,216.81,216.77,0.03307684]
[1756440385366,7.28,216.8,216.77,0.03307684]
[1756440385563,2.57377438,216.81,216.77,0.03307684]
[1756440385764,0.03452496,216.82,216.77,0.03307684]
[1756440385965,7.28,216.88,216.8,7.11]